fUSD/lending_fUSD_20260103
["ID","MTS","AMOUNT","RATE_DAILY","PERIOD"]
[400346907,1767406240456,-5256.589056,0.00032484,2]
[400346908,1767406240466,-8449.97025905,0.00032484,2]
[400346909,1767406240476,-193.59951911,0.00032754,3]
[400346910,1767406240486,-252.21239896,0.00032754,2]
[400346911,1767406240496,-166.66,0.00032824,30]
[400346912,1767406240506,-1155.94,0.00032924,120]
[400346913,1767406240515,-158.49,0.00033,14]
[400346914,1767406240526,-508.0,0.00033009,5]
[400346915,1767406240536,-153.45,0.00033113,2]
[400346916,1767406240546,-5256.589056,0.00033786,2]
[400346917,1767406240556,-8449.97025905,0.00033786,2]
[400346918,1767406240566,-210.20416775,0.00033874,2]
[400346919,1767406240576,-150.0,0.00033874,2]
[400346920,1767406240585,-500.0,0.00033874,2]
[400346921,1767406240595,-150.0,0.00033874,2]
[400346922,1767406240605,-167.43181631,0.00033874,2]
[400346923,1767406240615,-257.40464583,0.00034011,2]
[400346924,1767406240626,-500.0,0.00034011,2]
[400346925,1767406240635,-259.86544597,0.00034011,2]
[400346926,1767406240645,-521.96269266,0.00034148,2]
[400346927,1767406240655,-153.45,0.00034148,2]
[400346928,1767406240664,-173.92,0.000343,14]
[400346929,1767406240674,-222.43,0.00034401,120]
[400346930,1767406240684,-1000.0,0.00034433,2]
[400346931,1767406240705,-508.0,0.00034576,7]
[400346932,1767406240717,-176.54216202,0.00034702,2]
[400346933,1767406240726,-209.91190666,0.00034731,7]
[400346934,1767406240736,-208.93630464,0.00034731,7]
[400346935,1767406240747,-150.26122987,0.00034731,7]
[400346936,1767406240757,-152.12123138,0.00034731,7]
[400346937,1767406240768,-201.10958208,0.00035005,7]
[400346938,1767406240778,-155.58546639,0.00035005,7]
[400346939,1767406240787,-5256.589056,0.00035088,2]
[400346940,1767406240797,-8449.97025905,0.00035088,2]
[400346941,1767406240806,-153.45,0.00035183,2]
[400346942,1767406240816,-500.0,0.00035205,2]
[400346943,1767406240830,-276.0884,0.0003522,30]
[400346944,1767406240842,-210.52822888,0.00035616,29]
[400346945,1767406240852,-5000.0,0.00036111,2]
[400346946,1767406240862,-4496.26,0.00036124,2]
[400346947,1767406240872,-508.0,0.00036142,9]
[400346948,1767406240882,-3653.11,0.00036173,2]
[400346949,1767406240891,-150.0,0.00036214,2]
[400346950,1767406240902,-150.0,0.00036214,2]
[400346951,1767406240911,-153.45,0.00036218,2]
[400346952,1767406240921,-1674.62,0.00036232,2]
[400346953,1767406240931,-5000.0,0.00036307,2]
[400346954,1767406240941,-249.62704522,0.00036351,2]
[400346955,1767406240951,-170.55413539,0.00036351,2]
[400346956,1767406240961,-5256.589056,0.0003639,2]
[400346957,1767406240971,-8449.97025905,0.0003639,2]
[400346958,1767406240981,-2558.75,0.00036475,2]
[400346959,1767406240991,-2501.66,0.00036488,2]
[400346960,1767406241001,-5000.0,0.00036609,2]
[400346961,1767406241010,-1250.55,0.00036613,2]
[400346962,1767406241020,-732.24,0.00036705,2]
[400346963,1767406241030,-154.6511149,0.00036733,2]
[400346964,1767406241039,-5000.0,0.00036772,2]
[400346965,1767406241049,-2501.66,0.0003678,2]
[400346966,1767406241058,-192.56109622,0.0003679,2]
[400346967,1767406241068,-151.44,0.0003679,2]
[400346968,1767406241078,-5000.0,0.000368,2]
[400346969,1767406241087,-662.68,0.00036833,2]
[400346970,1767406241096,-5000.0,0.00036901,2]
[400346971,1767406241106,-153.45,0.00037252,2]
[400346972,1767406241116,-200.0,0.00037496,2]
[400346973,1767406241126,-207.4,0.00037496,2]
[400346974,1767406241136,-215.0738,0.00037496,2]
[400346975,1767406241145,-223.0315306,0.00037496,2]
[400346976,1767406241155,-231.28369723,0.00037496,2]
[400346977,1767406241165,-239.84119403,0.00037496,2]
[400346978,1767406241175,-248.71531821,0.00037496,2]
[400346979,1767406241184,-257.91778498,0.00037496,2]
[400346980,1767406241194,-267.46074303,0.00037496,2]
[400346981,1767406241203,-277.35679052,0.00037496,2]
[400346982,1767406241212,-244.87,0.00037496,14]
[400346983,1767406241222,-5256.589056,0.00037692,2]
[400346984,1767406241231,-8449.97025905,0.00037692,2]
[400346985,1767406241241,-508.0,0.00037708,11]
[400346986,1767406241251,-154.65111489,0.00037768,2]
[400346987,1767406241260,-244.87,0.0003777,14]
[400346988,1767406241270,-244.87,0.00038044,14]
[400346989,1767406241280,-152.1213374,0.00038186,30]
[400346990,1767406241289,-222.43,0.00038224,120]
[400346991,1767406241299,-1000.0,0.00038258,2]
[400346992,1767406241308,-153.45,0.00038287,2]
[400346993,1767406241318,-244.87,0.00038318,14]
[400346994,1767406241328,-244.88111799,0.00038592,30]
[400346995,1767406241337,-2434.0,0.00038696,2]
[400346996,1767406241347,-4814.0,0.00038696,2]
[400346997,1767406241356,-343.42531094,0.00038738,2]
[400346998,1767406241366,-303.88896894,0.00038738,2]
[400346999,1767406241376,-364.51871262,0.00038738,2]
[400347000,1767406241385,-300.0,0.00038738,2]
[400347001,1767406241395,-300.0,0.00038738,2]
[400347002,1767406241406,-303.51349633,0.00038738,2]
[400347003,1767406241415,-578.10034199,0.00038738,2]
[400347004,1767406241425,-616.00617618,0.00038738,2]
[400347005,1767406241435,-304.68719061,0.00038738,2]
[400347006,1767406241444,-383.44466145,0.00038738,2]
[400347007,1767406241454,-303.88896894,0.00038738,2]
[400347008,1767406241463,-364.51871262,0.00038738,2]
[400347009,1767406241472,-300.0,0.00038738,2]
[400347010,1767406241482,-537.86571605,0.00038738,2]
[400347011,1767406241491,-303.51349633,0.00038738,2]
[400347012,1767406241501,-578.10034199,0.00038738,2]
[400347013,1767406241510,-616.00617618,0.00038738,2]
[400347014,1767406241520,-304.68719061,0.00038738,2]
[400347015,1767406241530,-154.65111489,0.00038804,2]
[400347016,1767406241539,-298.41793724,0.00038865,2]
[400347017,1767406241549,-431.027,0.00038888,30]
[400347018,1767406241558,-5256.589056,0.00038994,2]
[400347019,1767406241568,-8449.97025905,0.00038994,2]
[400347020,1767406241578,-508.0,0.00039275,12]
[400347021,1767406241588,-153.45,0.00039322,2]
[400347022,1767406241597,-156.59,0.00039482,14]
[400347023,1767406241607,-54355.4870523,0.00039566,2]
[400347024,1767406241616,-806.1509144,0.00039566,2]
[400347025,1767406241625,-154.65111489,0.00039839,2]
[400347026,1767406241635,-575.83,0.0004,120]
[400347027,1767406241645,-291.06,0.0004,120]
[400347028,1767406241655,-151.0,0.0004,120]
[400347029,1767406241665,-158.49,0.0004,14]
[400347030,1767406241675,-152.0,0.0004,120]
[400347031,1767406241684,-163.50344027,0.0004,120]
[400347032,1767406241695,-5256.589056,0.00040296,15]
[400347033,1767406241705,-8449.97025905,0.00040296,15]
[400347034,1767406241715,-1361.655,0.00040499,2]
[400347035,1767406241724,-1404.0,0.00040499,2]
[400347036,1767406241734,-615.062,0.00040499,2]
[400347037,1767406241744,-3471.882,0.00040499,2]
[400347038,1767406241755,-433.0,0.00040499,2]
[400347039,1767406241765,-1265.0,0.00040499,2]
[400347040,1767406241774,-2000.0,0.000405,2]
[400347041,1767406241784,-168.0,0.0004065,2]
[400347042,1767406241794,-151.0,0.000407,120]
[400347043,1767406241804,-152.0,0.000407,120]
[400347044,1767406241814,-422.27835238,0.00040841,2]
[400347045,1767406241827,-508.0,0.00040841,14]
[400347046,1767406241837,-154.65111489,0.00040874,2]
[400347047,1767406241847,-160.71,0.00041,120]
[400347048,1767406241856,-999.0,0.00041095,120]
[400347049,1767406241868,-600.0,0.00041096,120]
[400347050,1767406241878,-307.35709776,0.00041096,2]
[400347051,1767406241887,-350.88038146,0.00041096,56]
[400347052,1767406241900,-500.0,0.00041096,31]
[400347053,1767406241910,-500.0,0.00041096,31]
[400347054,1767406241920,-500.0,0.00041096,31]
[400347055,1767406241930,-500.0,0.00041096,31]
[400347056,1767406241940,-500.0,0.00041096,31]
[400347057,1767406241949,-573.15398347,0.00041096,31]
[400347058,1767406241959,-500.0,0.00041096,31]
[400347059,1767406241969,-500.0,0.00041096,31]
[400347060,1767406241980,-250.6621,0.000411,60]
[400347061,1767406241990,-660.63,0.00041123,30]
[400347062,1767406242000,-482.1,0.00041123,30]
[400347063,1767406242009,-156.59,0.00041255,14]
[400347064,1767406242019,-600.0,0.0004137,120]
[400347065,1767406242029,-1134.25,0.00041397,30]
[400347066,1767406242038,-179.87,0.00041397,30]
[400347067,1767406242048,-1249.76,0.00041397,30]
[400347068,1767406242058,-301.63,0.00041397,30]
[400347069,1767406242068,-173.43,0.00041397,30]
[400347070,1767406242078,-465.99,0.00041397,30]
[400347071,1767406242088,-305.56,0.00041397,30]
[400347072,1767406242098,-151.0,0.000414,120]
[400347073,1767406242108,-600.0,0.00041413,60]
[400347074,1767406242118,-500.0,0.00041413,60]
[400347075,1767406242127,-1000.0,0.00041413,60]
[400347076,1767406242137,-152.0,0.000415,120]
[400347077,1767406242147,-5256.589056,0.00041598,15]
[400347078,1767406242157,-8449.97025905,0.00041598,15]
[400347079,1767406242167,-600.0,0.00041644,120]
[400347080,1767406242176,-5004.04964202,0.0004167,5]
[400347081,1767406242186,-2434.0,0.00041696,2]
[400347082,1767406242195,-4814.0,0.00041696,2]
[400347083,1767406242205,-1876.82762095,0.00041746,7]
[400347084,1767406242215,-337.0,0.00041746,30]
[400347085,1767406242224,-498.0,0.00041781,2]
[400347086,1767406242234,-154.65111489,0.0004191,5]
[400347087,1767406242244,-1812.10420537,0.00041911,120]
[400347088,1767406242254,-600.0,0.00041918,120]
[400347089,1767406242264,-150.62,0.00041945,30]
[400347090,1767406242273,-600.0,0.00041961,60]
[400347091,1767406242283,-1000.0,0.00041961,60]
[400347092,1767406242294,-938.84625359,0.00042,120]
[400347093,1767406242304,-4004.0,0.00042,120]
[400347094,1767406242314,-222.43,0.00042046,120]
[400347095,1767406242324,-500.0,0.00042057,7]
[400347096,1767406242334,-500.0,0.00042057,7]
[400347097,1767406242343,-500.0,0.00042057,7]
[400347098,1767406242353,-500.0,0.00042057,7]
[400347099,1767406242363,-517.92,0.00042057,7]
[400347100,1767406242373,-660.63,0.00042082,30]
[400347101,1767406242382,-482.1,0.00042082,30]
[400347102,1767406242393,-482.1,0.00042082,30]
[400347103,1767406242402,-660.63,0.00042082,30]
[400347104,1767406242411,-169.91,0.00042082,30]
[400347105,1767406242422,-660.63,0.00042082,30]
[400347106,1767406242431,-660.63,0.00042082,30]
[400347107,1767406242441,-660.63,0.00042082,30]
[400347108,1767406242450,-660.63,0.00042082,30]
[400347109,1767406242460,-660.63,0.00042082,30]
[400347110,1767406242470,-297.99,0.00042082,30]
[400347111,1767406242479,-660.63,0.00042082,30]
[400347112,1767406242490,-660.63,0.00042082,30]
[400347113,1767406242499,-660.63,0.00042082,30]
[400347114,1767406242510,-573.92,0.00042082,30]
[400347115,1767406242520,-1000.0,0.00042084,2]
[400347116,1767406242530,-151.0,0.000421,120]
[400347117,1767406242540,-1000.0,0.00042111,21]
[400347118,1767406242550,-604.45,0.00042166,12]
[400347119,1767406242560,-337.0,0.00042177,30]
[400347120,1767406242570,-614.19,0.00042183,30]
[400347121,1767406242580,-999.0,0.00042191,120]
[400347122,1767406242590,-600.0,0.00042192,120]
[400347123,1767406242600,-407.85,0.000422,120]
[400347124,1767406242612,-152.0,0.000422,120]
[400347125,1767406242621,-150.0,0.00042219,30]
[400347126,1767406242631,-178.84,0.00042219,30]
[400347127,1767406242641,-171.11,0.00042219,30]
[400347128,1767406242651,-150.0,0.00042219,30]
[400347129,1767406242661,-465.99,0.00042219,30]
[400347130,1767406242671,-178.84,0.00042219,30]
[400347131,1767406242681,-171.11,0.00042219,30]
[400347132,1767406242691,-465.99,0.00042219,30]
[400347133,1767406242701,-150.0,0.00042219,30]
[400347134,1767406242711,-178.84,0.00042219,30]
[400347135,1767406242721,-150.0,0.00042219,30]
[400347136,1767406242731,-465.99,0.00042219,30]
[400347137,1767406242740,-178.84,0.00042219,30]
[400347138,1767406242750,-231.91,0.00042219,30]
[400347139,1767406242760,-150.0,0.00042219,30]
[400347140,1767406242770,-150.0,0.00042219,30]
[400347141,1767406242781,-150.0,0.00042219,30]
[400347142,1767406242791,-150.0,0.00042219,30]
[400347143,1767406242800,-150.0,0.00042219,30]
[400347144,1767406242811,-150.0,0.00042219,30]
[400347145,1767406242823,-211.23,0.00042219,30]
[400347146,1767406242833,-554.77,0.00042219,30]
[400347148,1767406242844,-171.11,0.00042219,30]
[400347149,1767406242854,-150.0,0.00042219,30]
[400347150,1767406242865,-150.0,0.00042219,30]
[400347151,1767406242874,-171.11,0.00042219,30]
[400347152,1767406242883,-171.11,0.00042219,30]
[400347154,1767406242893,-150.0,0.00042219,30]
[400347155,1767406242903,-171.11,0.00042219,30]
[400347157,1767406242912,-150.0,0.00042219,30]
[400347159,1767406242922,-150.0,0.00042219,30]
[400347161,1767406242932,-150.0,0.00042219,30]
[400347162,1767406242941,-150.0,0.00042219,30]
[400347163,1767406242951,-508.0,0.00042408,16]
[400347164,1767406242960,-600.0,0.00042466,120]
[400347165,1767406242970,-500.0,0.00042501,30]
[400347166,1767406242979,-500.0,0.00042501,30]
[400347167,1767406242988,-570.0,0.00042501,30]
[400347168,1767406242998,-600.0,0.00042509,60]
[400347169,1767406243007,-1000.0,0.00042509,60]
[400347170,1767406243016,-500.0,0.00042509,60]
[400347171,1767406243026,-337.0,0.00042607,30]
[400347172,1767406243036,-817.51074,0.0004261,120]
[400347173,1767406243045,-817.51075,0.0004261,120]
[400347174,1767406243055,-817.51075,0.0004261,120]
[400347175,1767406243064,-817.51075,0.0004261,120]
[400347176,1767406243074,-817.51075,0.0004261,120]
[400347177,1767406243084,-808.14423843,0.0004261,30]
[400347178,1767406243094,-151.0,0.000427,120]
[400347179,1767406243103,-600.0,0.0004274,120]
[400347180,1767406243113,-300.0,0.0004282,2]
[400347181,1767406243123,-300.0,0.00042875,2]
[400347182,1767406243132,-316.95603587,0.00042882,2]
[400347183,1767406243141,-300.0,0.00042884,2]
[400347184,1767406243151,-300.0,0.0004289,2]
[400347185,1767406243160,-151.44,0.0004289,2]
[400347186,1767406243170,-300.0,0.00042899,30]
[400347187,1767406243180,-666.0,0.00042899,30]
[400347188,1767406243189,-10000.0,0.000429,2]
[400347189,1767406243199,-452.95,0.000429,120]
[400347190,1767406243208,-155.158769,0.000429,14]
[400347191,1767406243218,-151.0,0.000429,10]
[400347192,1767406243227,-151.0,0.000429,10]
[400347193,1767406243237,-151.0,0.000429,10]
[400347194,1767406243246,-153514.0,0.000429,120]
[400347195,1767406243257,-5256.589056,0.000429,15]
[400347196,1767406243267,-213.952354,0.000429,120]
[400347197,1767406243277,-8449.97025905,0.000429,15]
[400347198,1767406243288,-961.16139388,0.000429,2]
[400347199,1767406243297,-300.0,0.00042908,30]
[400347200,1767406243307,-961.16139385,0.00042909,2]
[400347201,1767406243317,-150.0,0.00042918,120]
[400347202,1767406243327,-961.16139385,0.00042918,2]
[400347203,1767406243337,-5211.0,0.00042923,7]
[400347204,1767406243347,-545.05418294,0.00042926,15]
[400347205,1767406243356,-961.16139385,0.00042927,2]
[400347206,1767406243365,-961.16139385,0.00042936,2]
[400347207,1767406243375,-154.65111489,0.00042945,9]
[400347208,1767406243385,-961.16139385,0.00042945,2]
[400347209,1767406243394,-300.0,0.00042948,2]
[400347210,1767406243404,-300.0,0.00042951,2]
[400347211,1767406243415,-2346.46,0.0004296,120]
[400347212,1767406243424,-300.0,0.0004296,2]
[400347213,1767406243434,-9282.0782515,0.00042962,2]
[400347214,1767406243443,-150.0,0.00042973,60]
[400347215,1767406243452,-150.0,0.00042973,2]
[400347216,1767406243462,-201296.1207223,0.00042986,2]
[400347217,1767406243471,-151.0,0.00042986,10]
[400347218,1767406243481,-151.0,0.00042986,10]
[400347219,1767406243491,-151.0,0.00042986,10]
[400347220,1767406243500,-249.243377,0.00042986,120]
[400347221,1767406243510,-150.0,0.00042986,30]
[400347222,1767406243520,-150.0,0.00042986,30]
[400347223,1767406243529,-150.0,0.00042986,30]
[400347224,1767406243539,-168.43746667,0.00042986,30]
[400347225,1767406243549,-150.0,0.00042986,30]
[400347226,1767406243558,-271.09951401,0.00042986,30]
[400347227,1767406243568,-151.11589432,0.00042986,30]
[400347228,1767406243578,-150.0,0.00042986,30]
[400347229,1767406243587,-150.0,0.00042986,30]
[400347230,1767406243597,-150.0,0.00042986,30]
[400347231,1767406243608,-150.0,0.00042986,30]
[400347232,1767406243618,-180.8190478,0.0004299,2]
[400347233,1767406243628,-192.56109622,0.0004299,7]
[400347234,1767406243638,-151.44,0.0004299,2]
[400347235,1767406243647,-151.44,0.0004299,2]
[400347236,1767406243657,-151.44,0.0004299,2]
[400347237,1767406243666,-151.44,0.0004299,2]
[400347238,1767406243676,-151.44,0.0004299,2]
[400347239,1767406243686,-151.44,0.0004299,2]
[400347240,1767406243695,-151.44,0.0004299,2]
[400347241,1767406243705,-151.44,0.0004299,2]
[400347242,1767406243714,-151.44,0.0004299,2]
[400347243,1767406243724,-151.44,0.0004299,2]
[400347246,1767406243733,-151.44,0.0004299,2]
[400347249,1767406243743,-151.44,0.0004299,2]
[400347251,1767406243752,-150.0,0.00042991,30]
[400347253,1767406243762,-150.0,0.00042992,30]
[400347255,1767406243772,-150.0,0.00042995,30]
[400347257,1767406243782,-150.0,0.00042998,30]
[400347259,1767406243791,-300.0,0.00042999,30]
[400347261,1767406243800,-670.68068141,0.00042999,30]
[400347263,1767406243810,-7360.91926702,0.00043,30]
[400347265,1767406243819,-150.0,0.00043,30]
[400347267,1767406243833,-116810.67354802,0.00043,120]
[400347276,1767406243939,-392.79297587,0.00043,120]
[400347277,1767406243950,-546.65973875,0.00043,120]
[400347278,1767406243963,-1088.55759989,0.00043,120]
[400347279,1767406244618,-150.0,0.00042219,30]
[400347280,1767406244628,-403.85569524,0.00043,120]
[400347281,1767406244669,-447.12,0.00043,120]
[400347282,1767406244683,-485.83789449,0.00043,120]
[400347284,1767406246052,-1197.0,0.00039313,2]
[400347285,1767406266068,195.0,0.00030316,120]
[400347286,1767406266188,195.0,0.00029326,120]
[400347287,1767406266277,195.0,0.00032526,120]
[400347289,1767406383916,500.0,0.00016973,2]
[400347290,1767406383949,1087.21389197,0.00017521,2]
[400347291,1767406386135,500.0,0.00014773,2]
[400347292,1767406386227,1006.93940787,0.00015321,2]
[400347293,1767406386998,500.0,0.00016973,2]
[400347294,1767406387049,1101.97621845,0.00017521,2]
[400347295,1767406392197,500.0,0.00016973,2]
[400347296,1767406392233,1000.0,0.00017521,2]
[400347297,1767406392290,501.63738083,0.00018068,2]
[400347298,1767406399965,500.0,0.00016973,2]
[400347299,1767406400017,1000.0,0.00017521,2]
[400347300,1767406400077,501.41139627,0.00018068,2]
[400347301,1767406403434,500.0,0.00016973,2]
[400347302,1767406403477,503.40326906,0.00017521,2]
[400347303,1767406405767,500.0,0.00016973,2]
[400347304,1767406405823,501.74736169,0.00017521,2]
[400347305,1767406406035,502.01824902,0.00017521,2]
[400347306,1767406406095,500.0,0.00016973,2]
[400347307,1767406406435,500.0,0.00016973,2]
[400347308,1767406406490,1000.0,0.00017521,2]
[400347309,1767406406548,501.94186786,0.00018068,2]
[400347310,1767406444609,150.0,0.00019178,2]
[400347311,1767406444655,250.58066205,0.00019726,2]
[400347312,1767406444741,900.11882083,0.00019726,2]
[400347313,1767406457411,151.0,0.00025677,2]
[400347314,1767406473557,151.0,0.00026395,2]
[400347315,1767406479921,-508.0,0.00029877,2]
[400347316,1767406489777,151.0,0.00028999,2]
[400347317,1767406496967,-735.16,0.00030471,26]
[400347318,1767406506431,151.0,0.00029188,2]
[400347319,1767406506655,-325.0,0.00031081,3]
[400347320,1767406506683,-400.0,0.00031081,2]
[400347321,1767406506714,-5256.58905603,0.00031082,2]
[400347322,1767406506744,-8449.97025905,0.00031082,2]
[400347323,1767406506772,-10568.44068492,0.00031083,3]
[400347325,1767406514770,-25000.0,0.00031083,3]
[400347326,1767406516222,-25000.0,0.00031083,3]
[400347327,1767406517290,-25000.0,0.00031083,3]
[400347328,1767406518371,-25000.0,0.00031083,3]
[400347329,1767406519585,-25000.0,0.00031083,3]
[400347330,1767406520739,-25000.0,0.00031083,3]
[400347331,1767406521877,-25000.0,0.00031083,3]
[400347332,1767406522605,151.0,0.00029716,2]
[400347333,1767406523244,-25000.0,0.00031083,3]
[400347334,1767406524568,-25000.0,0.00031083,3]
[400347335,1767406525994,-25000.0,0.00031083,3]
[400347336,1767406528543,-611.07720522,0.00031073,3]
[400347337,1767406528570,-24388.92279478,0.00031083,3]
[400347338,1767406538778,151.0,0.0002954,2]
[400347339,1767406554928,151.0,0.0002954,2]
[400347340,1767406563836,508.0,0.00029877,2]
[400347341,1767406571136,151.0,0.00029355,2]
[400347342,1767406590956,2500.0,0.00030982,2]
[400347343,1767406623930,503.24978916,0.00014773,2]
[400347344,1767406683176,151.0,0.00029361,2]
[400347345,1767406699382,151.0,0.00029577,2]
[400347346,1767406715531,151.0,0.00029606,2]
[400347347,1767406725505,2500.0,0.00030982,2]
[400347348,1767406731665,151.0,0.00029579,2]
[400347349,1767406747912,151.0,0.00029579,2]
[400347350,1767406795892,151.0,0.00029602,2]
[400347352,1767406812070,151.0,0.00029625,2]
[400347353,1767406828236,151.0,0.00029588,2]
[400347354,1767406844925,151.0,0.00029602,2]
[400347355,1767406856280,4105.521,0.00030982,2]
[400347356,1767406861077,151.0,0.00029602,2]
[400347357,1767406863182,1000.0,0.00017521,2]
[400347358,1767406863245,500.0,0.00016973,2]
[400347359,1767406863291,502.25563405,0.00018068,2]
[400347360,1767406868791,10615.97357679,0.00030982,2]
[400347361,1767406892953,588.128,0.00030471,26]
[400347362,1767406903761,269.67,0.00013699,2]
[400347363,1767406904003,269.67,0.00020187,2]
[400347364,1767406904202,269.67,0.00026676,2]
[400347365,1767406924240,501.83353675,0.00016973,2]
[400347366,1767406924549,508.0,0.00029877,2]
[400347367,1767406983949,500.0,0.00016973,2]
[400347368,1767406983980,426.73386812,0.00017521,2]
[400347369,1767406984013,1137.59864348,0.00017521,2]
[400347370,1767406984049,500.0,0.00016973,2]
[400347371,1767406984083,150.0,0.00017973,2]
[400347372,1767406984116,150.15912194,0.00018521,2]
[400347373,1767406999359,3009.96,0.000305,2]
[400347374,1767407006239,151.0,0.00029468,2]
[400347375,1767407038702,151.0,0.00029629,2]
[400347376,1767407054894,151.0,0.00029629,2]
[400347377,1767407071010,151.0,0.00029629,2]
[400347378,1767407087243,151.0,0.00029547,2]
[400347380,1767407132405,167.25206693,0.0002,120]
[400347383,1767407170130,160.30167271,0.0003,5]
[400347384,1767407181423,4754.70717614,0.000295,120]
[400347385,1767407201273,151.0,0.00029533,2]
[400347386,1767407205796,797.17006016,0.00024,7]
[400347387,1767407214838,5000.00451608,0.000162,5]
[400347388,1767407217437,151.0,0.00029496,2]
[400347389,1767407233647,151.0,0.00029496,2]
[400347390,1767407249892,151.0,0.00029496,2]
[400347391,1767407271020,5243.28229284,0.000328,120]
[400347392,1767407273098,8666.94058076,0.00018,2]
[400347393,1767407273126,24341.0,0.00018,2]
[400347394,1767407273153,8214.54305346,0.00018,2]
[400347398,1767407303669,1187.36086838,0.00018,2]
[400347399,1767407308845,2926.62400851,0.0002,7]
[400347401,1767407311209,527.28753623,0.0002,7]
[400347403,1767407320741,1342.42013878,0.00025,2]
[400347404,1767407322475,416.32444855,0.00025,3]
[400347405,1767407322853,150.5282361,0.000302,120]
[400347408,1767407409312,4320.93,0.00028734,2]
[400347416,1767407432133,-508.0,0.00029877,2]
[400347418,1767407432144,-1365.48438079,0.0003,3]
[400347420,1767407432156,-387.11639996,0.0003,3]
[400347422,1767407432170,-247.39921925,0.0003,3]
[400347424,1767407432180,-1356.3596943,0.00030872,3]
[400347427,1767407432197,-2548.73865149,0.00030872,3]
[400347428,1767407432213,-297.04785907,0.00030872,3]
[400347429,1767407432245,-2151.7138018,0.00030872,3]
[400347430,1767407432258,-1552.85296963,0.00030872,3]
[400347431,1767407432271,-491.21182123,0.00030872,3]
[400347432,1767407432301,-1680.66735613,0.00030872,3]
[400347433,1767407432313,-935.00529108,0.00030872,3]
[400347434,1767407432325,-1023.31953828,0.00030872,3]
[400347435,1767407432355,-1693.63405355,0.00030872,3]
[400347436,1767407432367,-976.045296,0.00030872,3]
[400347437,1767407432379,-2439.56562393,0.00030872,3]
[400347438,1767407432391,-979.31163854,0.00030872,3]
[400347439,1767407432411,-694.14625423,0.00030872,3]
[400347628,1767407440334,-277765.11144774,0.00030872,3]
[400347629,1767407440345,-198585.984139,0.00030872,3]
[400347631,1767407440364,-151.44,0.00030872,2]
[400347632,1767407440384,-192.56109622,0.00030872,2]
[400347634,1767407440397,-480724.74166609,0.00030882,2]
[400347635,1767407440410,-257.43250722,0.00030882,2]
[400347970,1767407446506,-21886.92303333,0.00030882,2]
[400347975,1767407475575,151.0,0.00028514,2]
[400348087,1767407540091,151.0,0.00028483,2]
[400348088,1767407541091,-3986.82962796,0.00030872,2]
[400348089,1767407541116,-449.99397839,0.00030872,2]
[400348090,1767407541146,-174.13551995,0.00030872,2]
[400348091,1767407541177,-20389.0408737,0.00030882,2]
[400348092,1767407546015,-7604.97323319,0.00030873,2]
[400348093,1767407546046,-17395.02676681,0.00030882,2]
[400348094,1767407551720,-796.2658854,0.00030872,2]
[400348095,1767407551747,-2495.42434523,0.00030872,2]
[400348096,1767407551783,-21708.30976937,0.00030882,2]
[400348097,1767407554134,-25000.0,0.00030882,2]
[400348098,1767407555380,-25000.0,0.00030882,2]